[Event "Titled Tuesday Blitz November 07 Late 2023"]
[White "Firouzja, Alireza"]
[Black "Bachmann, Axel"]
[WhiteFideId "12573981"]
[BlackFideId "3700488"]
[WhiteElo "3065"]
[BlackElo "2882"]
[Result "1-0"]
[Round "4"]
[TimeControl "180+1"]
[Date "2023.11.07"]
[WhiteClock "0:01:06"]
[BlackClock "0:00:26"]
[Board "6"]

1. e4 {[%clk 0:02:59]}  Nf6 {[%clk 0:02:44]} 2. e5 {[%clk 0:02:59]}  Nd5 {[%clk 0:02:44]} 3. d4 {[%clk 0:03:00]}  d6 {[%clk 0:02:44]} 4. Nf3 {[%clk 0:03:00]}  Bf5 {[%clk 0:02:42]} 5. exd6 {[%clk 0:02:48]}  exd6 {[%clk 0:02:40]} 6. c4 {[%clk 0:02:48]}  Nb6 {[%clk 0:02:35]} 7. Nc3 {[%clk 0:02:47]}  Be7 {[%clk 0:02:35]} 8. Bd3 {[%clk 0:02:48]}  Bxd3 {[%clk 0:02:27]} 9. Qxd3 {[%clk 0:02:49]}  O-O {[%clk 0:02:27]} 10. O-O {[%clk 0:02:48]}  Nc6 {[%clk 0:02:28]} 11. Re1 {[%clk 0:02:48]}  Bf6 {[%clk 0:02:18]} 12. b3 {[%clk 0:02:42]}  Re8 {[%clk 0:02:01]} 13. Bf4 {[%clk 0:02:41]}  Qd7 {[%clk 0:02:00]} 14. h3 {[%clk 0:02:39]}  Rxe1+ {[%clk 0:01:58]} 15. Rxe1 {[%clk 0:02:38]}  Re8 {[%clk 0:01:59]} 16. Rxe8+ {[%clk 0:02:34]}  Qxe8 {[%clk 0:02:00]} 17. Nb5 {[%clk 0:02:35]}  a6 {[%clk 0:01:35]} 18. Nxc7 {[%clk 0:02:34]}  Qd7 {[%clk 0:01:36]} 19. Qe3 {[%clk 0:02:27]}  Ne7 {[%clk 0:01:24]} 20. c5 {[%clk 0:02:04]}  Nbd5 {[%clk 0:01:18]} 21. Nxd5 {[%clk 0:02:04]}  Nxd5 {[%clk 0:01:18]} 22. Qe4 {[%clk 0:02:04]}  dxc5 {[%clk 0:01:15]} 23. dxc5 {[%clk 0:02:02]}  Nc3 {[%clk 0:01:15]} 24. Qc2 {[%clk 0:01:54]}  Qb5 {[%clk 0:01:15]} 25. Be3 {[%clk 0:01:53]}  h6 {[%clk 0:01:12]} 26. g3 {[%clk 0:01:51]}  Nd5 {[%clk 0:01:02]} 27. Bd4 {[%clk 0:01:49]}  Qb4 {[%clk 0:00:48]} 28. Bxf6 {[%clk 0:01:33]}  Nxf6 {[%clk 0:00:49]} 29. c6 {[%clk 0:01:26]}  bxc6 {[%clk 0:00:50]} 30. Qxc6 {[%clk 0:01:27]}  a5 {[%clk 0:00:48]} 31. Kg2 {[%clk 0:01:24]}  Qa3 {[%clk 0:00:46]} 32. Qc8+ {[%clk 0:01:21]}  Kh7 {[%clk 0:00:46]} 33. Qc2+ {[%clk 0:01:21]}  Kg8 {[%clk 0:00:46]} 34. Ne5 {[%clk 0:01:22]}  Qe7 {[%clk 0:00:43]} 35. Qc8+ {[%clk 0:01:16]}  Kh7 {[%clk 0:00:43]} 36. Qf5+ {[%clk 0:01:15]}  Kg8 {[%clk 0:00:44]} 37. Nc6 {[%clk 0:01:15]}  Qb7 {[%clk 0:00:41]} 38. Qc8+ {[%clk 0:01:07]}  Qxc8 {[%clk 0:00:41]} 39. Ne7+ {[%clk 0:01:07]}  Kf8 {[%clk 0:00:42]} 40. Nxc8 {[%clk 0:01:07]}  Nd5 {[%clk 0:00:42]} 41. Nd6 {[%clk 0:01:07]}  Nc3 {[%clk 0:00:26]} 42. a4 {[%clk 0:01:06]} 1-0


[Site "https://www.chess.com"]

[Event "Titled Tuesday Blitz November 07 Late 2023"]
[White "Martinez Alcantara, Jose Eduardo"]
[Black "Zakhartsov, Vladimir"]
[WhiteFideId "3805662"]
[BlackFideId "4145097"]
[WhiteElo "3043"]
[BlackElo "2834"]
[Result "1-0"]
[Round "4"]
[TimeControl "180+1"]
[Date "2023.11.07"]
[WhiteClock "0:00:03"]
[BlackClock "0:00:00"]
[Board "8"]

1. e4 {[%clk 0:03:00]}  c6 {[%clk 0:02:57]} 2. d4 {[%clk 0:03:01]}  d5 {[%clk 0:02:58]} 3. e5 {[%clk 0:03:01]}  c5 {[%clk 0:02:58]} 4. dxc5 {[%clk 0:03:00]}  e6 {[%clk 0:02:58]} 5. Bd3 {[%clk 0:03:00]}  Nc6 {[%clk 0:02:46]} 6. Nf3 {[%clk 0:02:59]}  Bxc5 {[%clk 0:02:45]} 7. O-O {[%clk 0:02:59]}  Nge7 {[%clk 0:02:36]} 8. Bf4 {[%clk 0:02:44]}  Ng6 {[%clk 0:02:35]} 9. Bg3 {[%clk 0:02:43]}  O-O {[%clk 0:02:34]} 10. Nbd2 {[%clk 0:02:41]}  f5 {[%clk 0:02:32]} 11. exf6 {[%clk 0:02:13]}  Qxf6 {[%clk 0:02:32]} 12. c4 {[%clk 0:02:14]}  Nf4 {[%clk 0:01:59]} 13. Qb3 {[%clk 0:02:14]}  Nxd3 {[%clk 0:01:42]} 14. Qxd3 {[%clk 0:02:13]}  Qf5 {[%clk 0:01:31]} 15. Qe2 {[%clk 0:02:00]}  b6 {[%clk 0:01:29]} 16. a3 {[%clk 0:01:58]}  a5 {[%clk 0:01:29]} 17. Rfe1 {[%clk 0:01:55]}  Ba6 {[%clk 0:01:19]} 18. Qxe6+ {[%clk 0:01:30]}  Qxe6 {[%clk 0:01:19]} 19. Rxe6 {[%clk 0:01:31]}  Nd8 {[%clk 0:01:20]} 20. Ree1 {[%clk 0:01:31]}  dxc4 {[%clk 0:01:19]} 21. Rac1 {[%clk 0:01:32]}  Rc8 {[%clk 0:01:19]} 22. Ne4 {[%clk 0:01:28]}  Nb7 {[%clk 0:01:04]} 23. Be5 {[%clk 0:01:23]}  b5 {[%clk 0:01:00]} 24. Rcd1 {[%clk 0:01:19]}  Rfd8 {[%clk 0:00:59]} 25. Rxd8+ {[%clk 0:01:00]}  Rxd8 {[%clk 0:00:40]} 26. Nxc5 {[%clk 0:00:59]}  Nxc5 {[%clk 0:00:41]} 27. Bc7 {[%clk 0:01:00]}  Rd7 {[%clk 0:00:22]} 28. Bxa5 {[%clk 0:00:57]}  Nd3 {[%clk 0:00:22]} 29. Rb1 {[%clk 0:00:53]}  Bb7 {[%clk 0:00:20]} 30. Nd2 {[%clk 0:00:42]}  Nf4 {[%clk 0:00:17]} 31. g3 {[%clk 0:00:23]}  Nh3+ {[%clk 0:00:15]} 32. Kf1 {[%clk 0:00:22]}  g5 {[%clk 0:00:16]} 33. Re1 {[%clk 0:00:20]}  g4 {[%clk 0:00:15]} 34. Re5 {[%clk 0:00:13]}  h6 {[%clk 0:00:10]} 35. Bc3 {[%clk 0:00:13]}  Ng5 {[%clk 0:00:08]} 36. Rxb5 {[%clk 0:00:11]}  Nf3 {[%clk 0:00:08]} 37. Nxc4 {[%clk 0:00:04]}  Ba6 {[%clk 0:00:06]} 38. a4 {[%clk 0:00:04]}  Rc7 {[%clk 0:00:03]} 39. Nd6 {[%clk 0:00:05]}  Rc6 {[%clk 0:00:03]} 40. Nf5 {[%clk 0:00:04]}  Rb6 {[%clk 0:00:02]} 41. Ne7+ {[%clk 0:00:04]}  Kf7 {[%clk 0:00:02]} 42. Nd5 {[%clk 0:00:04]}  Bxb5+ {[%clk 0:00:02]} 43. axb5 {[%clk 0:00:05]}  Rxb5 {[%clk 0:00:03]} 44. Ne3 {[%clk 0:00:05]}  h5 {[%clk 0:00:03]} 45. Kg2 {[%clk 0:00:06]}  Kg6 {[%clk 0:00:02]} 46. h3 {[%clk 0:00:07]}  Kg5 {[%clk 0:00:02]} 47. h4+ {[%clk 0:00:07]}  Kg6 {[%clk 0:00:02]} 48. Kf1 {[%clk 0:00:08]}  Rb7 {[%clk 0:00:02]} 49. Ng2 {[%clk 0:00:08]}  Rd7 {[%clk 0:00:02]} 50. Nf4+ {[%clk 0:00:09]}  Kh6 {[%clk 0:00:03]} 51. Ke2 {[%clk 0:00:10]}  Re7+ {[%clk 0:00:01]} 52. Kd3 {[%clk 0:00:10]}  Rd7+ {[%clk 0:00:02]} 53. Ke4 {[%clk 0:00:11]}  Rd1 {[%clk 0:00:03]} 54. b4 {[%clk 0:00:10]}  Rc1 {[%clk 0:00:02]} 55. Kd3 {[%clk 0:00:04]}  Rf1 {[%clk 0:00:02]} 56. Ke2 {[%clk 0:00:04]}  Rc1 {[%clk 0:00:02]} 57. Nd5 {[%clk 0:00:05]}  Rc2+ {[%clk 0:00:02]} 58. Ke3 {[%clk 0:00:05]}  Kg6 {[%clk 0:00:02]} 59. b5 {[%clk 0:00:05]}  Rc1 {[%clk 0:00:03]} 60. b6 {[%clk 0:00:05]}  Rb1 {[%clk 0:00:04]} 61. Kd3 {[%clk 0:00:04]}  Kf5 {[%clk 0:00:04]} 62. Nb4 {[%clk 0:00:04]}  Ne5+ {[%clk 0:00:04]} 63. Kc2 {[%clk 0:00:05]}  Re1 {[%clk 0:00:03]} 64. b7 {[%clk 0:00:02]}  Nd7 {[%clk 0:00:02]} 65. Bxe1 {[%clk 0:00:02]}  Nb8 {[%clk 0:00:00]} 66. Bd2 {[%clk 0:00:03]} 1-0


[Site "https://www.chess.com"]

[Event "Titled Tuesday Blitz November 07 Late 2023"]
[White "Ibarra Jerez, Jose Carlos"]
[Black "Ghasi, Ameet K"]
[WhiteFideId "2226332"]
[BlackFideId "409200"]
[WhiteElo "3010"]
[BlackElo "2810"]
[Result "1-0"]
[Round "4"]
[TimeControl "180+1"]
[Date "2023.11.07"]
[WhiteClock "0:00:20"]
[BlackClock "0:00:10"]
[Board "10"]

1. e4 {[%clk 0:02:59]}  g6 {[%clk 0:03:00]} 2. d4 {[%clk 0:02:59]}  Bg7 {[%clk 0:03:01]} 3. Nc3 {[%clk 0:02:59]}  d6 {[%clk 0:03:02]} 4. Be3 {[%clk 0:02:58]}  a6 {[%clk 0:03:02]} 5. Nf3 {[%clk 0:02:58]}  Nf6 {[%clk 0:03:01]} 6. Qd2 {[%clk 0:02:56]}  Bg4 {[%clk 0:02:58]} 7. Nh4 {[%clk 0:02:55]}  e5 {[%clk 0:02:53]} 8. dxe5 {[%clk 0:02:38]}  dxe5 {[%clk 0:02:53]} 9. Qxd8+ {[%clk 0:02:38]}  Kxd8 {[%clk 0:02:54]} 10. h3 {[%clk 0:02:38]}  Bd7 {[%clk 0:02:48]} 11. O-O-O {[%clk 0:02:36]}  b5 {[%clk 0:02:41]} 12. Nf3 {[%clk 0:02:31]}  Nc6 {[%clk 0:02:40]} 13. a3 {[%clk 0:02:25]}  h6 {[%clk 0:02:36]} 14. Nd2 {[%clk 0:02:19]}  Nd4 {[%clk 0:02:11]} 15. g3 {[%clk 0:01:52]}  Ke7 {[%clk 0:01:57]} 16. f4 {[%clk 0:01:50]}  Nh5 {[%clk 0:01:52]} 17. Nd5+ {[%clk 0:01:39]}  Kd8 {[%clk 0:01:51]} 18. Rg1 {[%clk 0:01:37]}  Re8 {[%clk 0:01:36]} 19. c3 {[%clk 0:01:35]}  Nc6 {[%clk 0:01:29]} 20. Nb3 {[%clk 0:01:28]}  Kc8 {[%clk 0:01:24]} 21. Nc5 {[%clk 0:01:17]}  Be6 {[%clk 0:01:22]} 22. f5 {[%clk 0:01:12]}  gxf5 {[%clk 0:01:10]} 23. exf5 {[%clk 0:01:12]}  Bxd5 {[%clk 0:01:09]} 24. Rxd5 {[%clk 0:01:11]}  Nf6 {[%clk 0:01:09]} 25. Bg2 {[%clk 0:01:07]}  e4 {[%clk 0:01:09]} 26. Rdd1 {[%clk 0:01:00]}  Bf8 {[%clk 0:01:02]} 27. Rge1 {[%clk 0:00:57]}  Na5 {[%clk 0:00:58]} 28. Nxe4 {[%clk 0:00:45]}  Nxe4 {[%clk 0:00:51]} 29. Bf4 {[%clk 0:00:35]}  Nb3+ {[%clk 0:00:43]} 30. Kc2 {[%clk 0:00:34]}  Nbc5 {[%clk 0:00:31]} 31. b4 {[%clk 0:00:34]}  Rb8 {[%clk 0:00:27]} 32. bxc5 {[%clk 0:00:33]}  Nf6 {[%clk 0:00:26]} 33. Rxe8+ {[%clk 0:00:27]}  Nxe8 {[%clk 0:00:27]} 34. Bc6 {[%clk 0:00:21]}  Nf6 {[%clk 0:00:27]} 35. Be5 {[%clk 0:00:22]}  Be7 {[%clk 0:00:26]} 36. g4 {[%clk 0:00:20]}  a5 {[%clk 0:00:13]} 37. Kb3 {[%clk 0:00:19]}  Nh7 {[%clk 0:00:06]} 38. Rd7 {[%clk 0:00:18]}  Bxc5 {[%clk 0:00:05]} 39. Rxc7+ {[%clk 0:00:18]}  Kd8 {[%clk 0:00:05]} 40. Rxf7 {[%clk 0:00:19]}  Rb6 {[%clk 0:00:05]} 41. Bc7+ {[%clk 0:00:18]}  Kc8 {[%clk 0:00:05]} 42. Bxb6 {[%clk 0:00:19]}  Bxb6 {[%clk 0:00:06]} 43. Rxh7 {[%clk 0:00:19]}  a4+ {[%clk 0:00:07]} 44. Kb4 {[%clk 0:00:19]}  Bc5+ {[%clk 0:00:08]} 45. Kxc5 {[%clk 0:00:19]}  h5 {[%clk 0:00:09]} 46. Kd6 {[%clk 0:00:19]}  Kd8 {[%clk 0:00:10]} 47. Rh8# {[%clk 0:00:20]} 1-0


[Site "https://www.chess.com"]

[Event "Titled Tuesday Blitz November 07 Late 2023"]
[White "Oparin, Grigoriy"]
[Black "Kozak, Antoni"]
[WhiteFideId "24125890"]
[BlackFideId "21832030"]
[WhiteElo "3006"]
[BlackElo "2807"]
[Result "1/2-1/2"]
[Round "4"]
[TimeControl "180+1"]
[Date "2023.11.07"]
[WhiteClock "0:00:04"]
[BlackClock "0:00:08"]
[Board "11"]

1. d4 {[%clk 0:03:00]}  Nf6 {[%clk 0:02:59]} 2. c4 {[%clk 0:03:00]}  e6 {[%clk 0:02:59]} 3. Nc3 {[%clk 0:03:01]}  d5 {[%clk 0:03:00]} 4. cxd5 {[%clk 0:03:01]}  exd5 {[%clk 0:03:00]} 5. Bg5 {[%clk 0:03:01]}  c6 {[%clk 0:03:01]} 6. e3 {[%clk 0:03:02]}  Be6 {[%clk 0:03:02]} 7. Bd3 {[%clk 0:03:00]}  Nbd7 {[%clk 0:03:02]} 8. f3 {[%clk 0:02:57]}  Be7 {[%clk 0:02:54]} 9. Bh4 {[%clk 0:02:53]}  O-O {[%clk 0:02:48]} 10. Nge2 {[%clk 0:02:52]}  Ne8 {[%clk 0:02:48]} 11. Bf2 {[%clk 0:02:52]}  Nd6 {[%clk 0:02:45]} 12. O-O {[%clk 0:02:53]}  Bg5 {[%clk 0:02:39]} 13. Ng3 {[%clk 0:02:48]}  f5 {[%clk 0:02:36]} 14. Nge2 {[%clk 0:02:46]}  Qf6 {[%clk 0:02:30]} 15. Qc2 {[%clk 0:02:39]}  Rae8 {[%clk 0:02:29]} 16. Rae1 {[%clk 0:02:40]}  Rf7 {[%clk 0:02:12]} 17. Nf4 {[%clk 0:02:32]}  Nf8 {[%clk 0:02:11]} 18. Nce2 {[%clk 0:02:26]}  Bc8 {[%clk 0:02:07]} 19. Qd2 {[%clk 0:02:08]}  Rfe7 {[%clk 0:02:03]} 20. b3 {[%clk 0:02:08]}  Ng6 {[%clk 0:01:50]} 21. Bc2 {[%clk 0:01:57]}  Qf7 {[%clk 0:01:42]} 22. Nc1 {[%clk 0:01:53]}  Bf6 {[%clk 0:01:17]} 23. Ncd3 {[%clk 0:01:49]}  Nf8 {[%clk 0:01:15]} 24. Nh3 {[%clk 0:01:47]}  g5 {[%clk 0:01:14]} 25. Ne5 {[%clk 0:01:37]}  Qg7 {[%clk 0:01:14]} 26. Bg3 {[%clk 0:01:34]}  Nf7 {[%clk 0:01:04]} 27. Nxf7 {[%clk 0:01:23]}  Rxf7 {[%clk 0:01:05]} 28. Nf2 {[%clk 0:01:23]}  h5 {[%clk 0:00:55]} 29. Nd3 {[%clk 0:01:23]}  h4 {[%clk 0:00:53]} 30. Be5 {[%clk 0:01:23]}  Ng6 {[%clk 0:00:52]} 31. f4 {[%clk 0:01:21]}  g4 {[%clk 0:00:46]} 32. Bxf6 {[%clk 0:01:21]}  Rxf6 {[%clk 0:00:45]} 33. Ne5 {[%clk 0:01:22]}  Nf8 {[%clk 0:00:33]} 34. Bd3 {[%clk 0:01:22]}  Rh6 {[%clk 0:00:30]} 35. b4 {[%clk 0:01:22]}  h3 {[%clk 0:00:27]} 36. g3 {[%clk 0:01:21]}  Be6 {[%clk 0:00:25]} 37. Rc1 {[%clk 0:01:22]}  a6 {[%clk 0:00:20]} 38. a4 {[%clk 0:01:22]}  Nd7 {[%clk 0:00:20]} 39. b5 {[%clk 0:01:20]}  axb5 {[%clk 0:00:13]} 40. axb5 {[%clk 0:01:21]}  Nxe5 {[%clk 0:00:09]} 41. fxe5 {[%clk 0:01:22]}  Qd7 {[%clk 0:00:05]} 42. bxc6 {[%clk 0:01:17]}  bxc6 {[%clk 0:00:05]} 43. e4 {[%clk 0:01:17]}  dxe4 {[%clk 0:00:04]} 44. Qxh6 {[%clk 0:01:15]}  Qxd4+ {[%clk 0:00:04]} 45. Rf2 {[%clk 0:01:08]}  exd3 {[%clk 0:00:03]} 46. Rxc6 {[%clk 0:01:00]}  Qxe5 {[%clk 0:00:02]} 47. Qd2 {[%clk 0:00:54]}  Bf7 {[%clk 0:00:02]} 48. Rc1 {[%clk 0:00:51]}  Qe4 {[%clk 0:00:02]} 49. Qg5+ {[%clk 0:00:45]}  Kf8 {[%clk 0:00:02]} 50. Rcf1 {[%clk 0:00:27]}  Qd4 {[%clk 0:00:02]} 51. Qxf5 {[%clk 0:00:25]}  Re7 {[%clk 0:00:03]} 52. Qc8+ {[%clk 0:00:19]}  Kg7 {[%clk 0:00:03]} 53. Qc1 {[%clk 0:00:16]}  Re2 {[%clk 0:00:03]} 54. Qg5+ {[%clk 0:00:16]}  Kf8 {[%clk 0:00:03]} 55. Qh6+ {[%clk 0:00:16]}  Ke8 {[%clk 0:00:03]} 56. Qc6+ {[%clk 0:00:13]}  Kf8 {[%clk 0:00:04]} 57. Qh6+ {[%clk 0:00:09]}  Ke8 {[%clk 0:00:04]} 58. Qf4 {[%clk 0:00:08]}  Qxf4 {[%clk 0:00:03]} 59. gxf4 {[%clk 0:00:08]}  Re3 {[%clk 0:00:03]} 60. Rd2 {[%clk 0:00:07]}  Bd5 {[%clk 0:00:03]} 61. f5 {[%clk 0:00:07]}  Bf3 {[%clk 0:00:03]} 62. Kf2 {[%clk 0:00:06]}  Re2+ {[%clk 0:00:03]} 63. Rxe2+ {[%clk 0:00:06]}  dxe2 {[%clk 0:00:04]} 64. Ra1 {[%clk 0:00:05]}  Kf7 {[%clk 0:00:05]} 65. Ra6 {[%clk 0:00:03]}  Ke7 {[%clk 0:00:05]} 66. f6+ {[%clk 0:00:03]}  Kf7 {[%clk 0:00:05]} 67. Rb6 {[%clk 0:00:03]}  Kg6 {[%clk 0:00:06]} 68. Ra6 {[%clk 0:00:03]}  Kf7 {[%clk 0:00:06]} 69. Rb6 {[%clk 0:00:03]}  Kg6 {[%clk 0:00:07]} 70. Ra6 {[%clk 0:00:04]}  Kf7 {[%clk 0:00:08]} 1/2-1/2


[Site "https://www.chess.com"]

[Event "Titled Tuesday Blitz November 07 Late 2023"]
[White "Troff, Kayden"]
[Black "Deac, Bogdan-Daniel"]
[WhiteFideId "2047896"]
[BlackFideId "1226380"]
[WhiteElo "2803"]
[BlackElo "2982"]
[Result "1/2-1/2"]
[Round "4"]
[TimeControl "180+1"]
[Date "2023.11.07"]
[WhiteClock "0:00:59"]
[BlackClock "0:00:39"]
[Board "12"]

1. d4 {[%clk 0:03:00]}  Nf6 {[%clk 0:02:59]} 2. Nf3 {[%clk 0:03:01]}  d5 {[%clk 0:02:58]} 3. Bf4 {[%clk 0:03:01]}  c5 {[%clk 0:02:58]} 4. e3 {[%clk 0:03:02]}  Nc6 {[%clk 0:02:59]} 5. Nc3 {[%clk 0:03:02]}  cxd4 {[%clk 0:02:54]} 6. Nxd4 {[%clk 0:03:01]}  a6 {[%clk 0:02:49]} 7. Be2 {[%clk 0:02:53]}  g6 {[%clk 0:02:48]} 8. h4 {[%clk 0:02:48]}  h5 {[%clk 0:02:44]} 9. Nxc6 {[%clk 0:02:37]}  bxc6 {[%clk 0:02:44]} 10. Be5 {[%clk 0:02:37]}  Bg7 {[%clk 0:02:44]} 11. e4 {[%clk 0:02:36]}  O-O {[%clk 0:02:43]} 12. exd5 {[%clk 0:02:36]}  cxd5 {[%clk 0:02:43]} 13. Qd4 {[%clk 0:02:32]}  Be6 {[%clk 0:02:30]} 14. g4 {[%clk 0:02:22]}  Bxg4 {[%clk 0:02:25]} 15. Bxg4 {[%clk 0:02:21]}  hxg4 {[%clk 0:02:26]} 16. h5 {[%clk 0:02:22]}  Nxh5 {[%clk 0:02:25]} 17. Rxh5 {[%clk 0:02:19]}  f6 {[%clk 0:02:25]} 18. Rh4 {[%clk 0:02:01]}  fxe5 {[%clk 0:02:17]} 19. Qxd5+ {[%clk 0:02:02]}  Qxd5 {[%clk 0:02:17]} 20. Nxd5 {[%clk 0:02:03]}  e4 {[%clk 0:02:11]} 21. Rxg4 {[%clk 0:01:49]}  Rab8 {[%clk 0:02:06]} 22. Rb1 {[%clk 0:01:41]}  e6 {[%clk 0:01:29]} 23. Ne3 {[%clk 0:01:32]}  Bxb2 {[%clk 0:01:09]} 24. Ke2 {[%clk 0:01:25]}  Bd4 {[%clk 0:01:04]} 25. Rxb8 {[%clk 0:01:11]}  Rxb8 {[%clk 0:01:02]} 26. Rxg6+ {[%clk 0:01:06]}  Kf7 {[%clk 0:01:02]} 27. Rg4 {[%clk 0:01:06]}  Rb2 {[%clk 0:00:59]} 28. Rxe4 {[%clk 0:01:05]}  Bxe3 {[%clk 0:00:52]} 29. Kxe3 {[%clk 0:01:06]}  Rxc2 {[%clk 0:00:49]} 30. Ra4 {[%clk 0:01:05]}  Rc6 {[%clk 0:00:50]} 31. f4 {[%clk 0:01:03]}  Kf6 {[%clk 0:00:50]} 32. Ra5 {[%clk 0:01:03]}  Rb6 {[%clk 0:00:47]} 33. Ke4 {[%clk 0:01:03]}  Rb4+ {[%clk 0:00:47]} 34. Ke3 {[%clk 0:01:03]}  Rb6 {[%clk 0:00:47]} 35. Ke4 {[%clk 0:01:04]}  Rd6 {[%clk 0:00:47]} 36. Ke3 {[%clk 0:01:04]}  Rc6 {[%clk 0:00:47]} 37. Ke4 {[%clk 0:01:04]}  Kf7 {[%clk 0:00:46]} 38. f5 {[%clk 0:01:01]}  exf5+ {[%clk 0:00:46]} 39. Kxf5 {[%clk 0:01:02]}  Ke7 {[%clk 0:00:46]} 40. Ke5 {[%clk 0:01:02]}  Rh6 {[%clk 0:00:46]} 41. Kd4 {[%clk 0:01:02]}  Kd7 {[%clk 0:00:44]} 42. Kc3 {[%clk 0:01:02]}  Kc7 {[%clk 0:00:43]} 43. Ra4 {[%clk 0:01:00]}  Kb6 {[%clk 0:00:43]} 44. Rb4+ {[%clk 0:00:59]}  Kc5 {[%clk 0:00:43]} 45. Rg4 {[%clk 0:00:59]}  Rh3+ {[%clk 0:00:39]} 46. Kb2 {[%clk 0:00:59]} 1/2-1/2


[Site "https://www.chess.com"]

[Event "Titled Tuesday Blitz November 07 Late 2023"]
[White "Makarian, Rudik"]
[Black "Giroyan, Gary"]
[WhiteFideId "44105681"]
[BlackFideId "680281"]
[WhiteElo "2973"]
[BlackElo "2680"]
[Result "1-0"]
[Round "4"]
[TimeControl "180+1"]
[Date "2023.11.07"]
[WhiteClock "0:00:08"]
[BlackClock "0:00:02"]
[Board "14"]

1. d4 {[%clk 0:03:00]}  Nf6 {[%clk 0:02:59]} 2. c4 {[%clk 0:03:01]}  e6 {[%clk 0:02:59]} 3. Nf3 {[%clk 0:03:02]}  d5 {[%clk 0:02:58]} 4. g3 {[%clk 0:03:02]}  Be7 {[%clk 0:02:56]} 5. Bg2 {[%clk 0:03:02]}  O-O {[%clk 0:02:57]} 6. Qc2 {[%clk 0:03:00]}  a5 {[%clk 0:02:53]} 7. O-O {[%clk 0:03:00]}  c6 {[%clk 0:02:51]} 8. Rd1 {[%clk 0:03:00]}  b5 {[%clk 0:02:44]} 9. c5 {[%clk 0:02:59]}  Nbd7 {[%clk 0:02:41]} 10. Bf4 {[%clk 0:02:57]}  Ne4 {[%clk 0:02:34]} 11. h4 {[%clk 0:02:56]}  Ba6 {[%clk 0:02:30]} 12. a3 {[%clk 0:02:54]}  Re8 {[%clk 0:02:21]} 13. b4 {[%clk 0:02:53]}  Bc8 {[%clk 0:02:13]} 14. Nc3 {[%clk 0:02:52]}  f5 {[%clk 0:02:03]} 15. Ne5 {[%clk 0:02:34]}  Nxe5 {[%clk 0:02:02]} 16. Bxe5 {[%clk 0:02:34]}  Bf6 {[%clk 0:01:51]} 17. Nxe4 {[%clk 0:02:03]}  fxe4 {[%clk 0:01:49]} 18. f4 {[%clk 0:01:27]}  Bd7 {[%clk 0:01:24]} 19. Kh2 {[%clk 0:01:08]}  Qe7 {[%clk 0:01:18]} 20. a4 {[%clk 0:01:00]}  Bxe5 {[%clk 0:01:07]} 21. fxe5 {[%clk 0:00:56]}  bxa4 {[%clk 0:00:51]} 22. Qxa4 {[%clk 0:00:50]}  Reb8 {[%clk 0:00:48]} 23. bxa5 {[%clk 0:00:49]}  Rb2 {[%clk 0:00:42]} 24. Ra2 {[%clk 0:00:49]}  Rb5 {[%clk 0:00:42]} 25. a6 {[%clk 0:00:47]}  Bc8 {[%clk 0:00:42]} 26. a7 {[%clk 0:00:47]}  Qb7 {[%clk 0:00:36]} 27. Rda1 {[%clk 0:00:47]}  Bd7 {[%clk 0:00:35]} 28. Qa3 {[%clk 0:00:43]}  Rb3 {[%clk 0:00:34]} 29. Qc1 {[%clk 0:00:43]}  Qb4 {[%clk 0:00:31]} 30. Ra4 {[%clk 0:00:40]}  Qb5 {[%clk 0:00:28]} 31. R1a2 {[%clk 0:00:29]}  e3 {[%clk 0:00:25]} 32. Bf3 {[%clk 0:00:24]}  Be8 {[%clk 0:00:22]} 33. R4a3 {[%clk 0:00:23]}  Rxa3 {[%clk 0:00:15]} 34. Rxa3 {[%clk 0:00:24]}  Qb7 {[%clk 0:00:15]} 35. Qxe3 {[%clk 0:00:13]}  Rxa7 {[%clk 0:00:15]} 36. Rxa7 {[%clk 0:00:13]}  Qxa7 {[%clk 0:00:16]} 37. Qg5 {[%clk 0:00:13]}  Qd7 {[%clk 0:00:16]} 38. Kg2 {[%clk 0:00:12]}  h6 {[%clk 0:00:14]} 39. Qd2 {[%clk 0:00:12]}  Bg6 {[%clk 0:00:14]} 40. Qa5 {[%clk 0:00:12]}  Kh7 {[%clk 0:00:14]} 41. Qa8 {[%clk 0:00:12]}  Bf5 {[%clk 0:00:12]} 42. Qf8 {[%clk 0:00:11]}  Bg6 {[%clk 0:00:11]} 43. Qd6 {[%clk 0:00:12]}  Qe8 {[%clk 0:00:10]} 44. Kh2 {[%clk 0:00:11]}  Bf5 {[%clk 0:00:11]} 45. Kg1 {[%clk 0:00:11]}  Bg6 {[%clk 0:00:11]} 46. Bg4 {[%clk 0:00:10]}  Bf5 {[%clk 0:00:07]} 47. Bxf5+ {[%clk 0:00:10]}  exf5 {[%clk 0:00:07]} 48. e6 {[%clk 0:00:11]}  Kg6 {[%clk 0:00:07]} 49. Qe5 {[%clk 0:00:09]}  Qe7 {[%clk 0:00:03]} 50. Kg2 {[%clk 0:00:08]}  h5 {[%clk 0:00:03]} 51. Kf3 {[%clk 0:00:08]}  Qe8 {[%clk 0:00:02]} 52. Kf4 {[%clk 0:00:08]}  Qf8 {[%clk 0:00:03]} 53. e7 {[%clk 0:00:08]}  Qe8 {[%clk 0:00:04]} 54. Qxf5+ {[%clk 0:00:08]}  Kh6 {[%clk 0:00:04]} 55. Qf8 {[%clk 0:00:07]}  Qd7 {[%clk 0:00:04]} 56. e8=Q {[%clk 0:00:06]}  Qg4+ {[%clk 0:00:05]} 57. Ke5 {[%clk 0:00:06]}  Qxg3+ {[%clk 0:00:05]} 58. Ke6 {[%clk 0:00:07]}  Qxh4 {[%clk 0:00:05]} 59. Kd6 {[%clk 0:00:07]}  Qg3+ {[%clk 0:00:05]} 60. Qe5 {[%clk 0:00:07]}  Qg6+ {[%clk 0:00:02]} 61. Kc7 {[%clk 0:00:08]} 1-0


[Site "https://www.chess.com"]

[Event "Titled Tuesday Blitz November 07 Late 2023"]
[White "Sarana, Alexey"]
[Black "Seemann, Jakub"]
[WhiteFideId "24133795"]
[BlackFideId "21874697"]
[WhiteElo "2970"]
[BlackElo "2644"]
[Result "1-0"]
[Round "4"]
[TimeControl "180+1"]
[Date "2023.11.07"]
[WhiteClock "0:02:16"]
[BlackClock "0:00:43"]
[Board "15"]

1. d4 {[%clk 0:02:56]}  Nf6 {[%clk 0:02:59]} 2. c4 {[%clk 0:02:57]}  e6 {[%clk 0:02:59]} 3. Nc3 {[%clk 0:02:57]}  d5 {[%clk 0:02:50]} 4. cxd5 {[%clk 0:02:55]}  Nxd5 {[%clk 0:02:51]} 5. e4 {[%clk 0:02:55]}  Nxc3 {[%clk 0:02:51]} 6. bxc3 {[%clk 0:02:56]}  c5 {[%clk 0:02:51]} 7. Rb1 {[%clk 0:02:57]}  Be7 {[%clk 0:02:48]} 8. Nf3 {[%clk 0:02:57]}  O-O {[%clk 0:02:42]} 9. h4 {[%clk 0:02:57]}  b6 {[%clk 0:02:41]} 10. h5 {[%clk 0:02:57]}  h6 {[%clk 0:02:40]} 11. Rh3 {[%clk 0:02:57]}  Kh8 {[%clk 0:02:29]} 12. Rg3 {[%clk 0:02:56]}  Rg8 {[%clk 0:02:28]} 13. Bd3 {[%clk 0:02:55]}  Ba6 {[%clk 0:02:25]} 14. Qd2 {[%clk 0:02:53]}  Bxd3 {[%clk 0:02:24]} 15. Qxd3 {[%clk 0:02:54]}  cxd4 {[%clk 0:02:22]} 16. cxd4 {[%clk 0:02:54]}  Nc6 {[%clk 0:02:21]} 17. Bd2 {[%clk 0:02:51]}  Rc8 {[%clk 0:02:18]} 18. Kf1 {[%clk 0:02:48]}  Qd7 {[%clk 0:01:58]} 19. Bc3 {[%clk 0:02:46]}  Bf6 {[%clk 0:01:52]} 20. Rd1 {[%clk 0:02:45]}  Rgd8 {[%clk 0:01:51]} 21. d5 {[%clk 0:02:40]}  e5 {[%clk 0:01:00]} 22. Kg1 {[%clk 0:02:32]}  Na5 {[%clk 0:00:53]} 23. Bxe5 {[%clk 0:02:27]}  Bxe5 {[%clk 0:00:50]} 24. Nxe5 {[%clk 0:02:28]}  Qe7 {[%clk 0:00:49]} 25. Qd4 {[%clk 0:02:19]}  Qf6 {[%clk 0:00:49]} 26. Rf3 {[%clk 0:02:15]}  Qh4 {[%clk 0:00:43]} 27. Nxf7+ {[%clk 0:02:16]} 1-0


[Site "https://www.chess.com"]